bitfinex-derivatives/quotes_ETHF0:USTF0_20250126
["timestamp","ask_amount","ask_price","bid_price","bid_amount"]
[1737910782574,5.42316362,3319.4,3319.3,1.85870279]
[1737910788470,10.42316362,3319.4,3319.3,1.85870279]
[1737910788877,5.42316362,3319.4,3319.3,1.85870279]
[1737910790466,5.42316362,3319.4,3319.3,0.66540179]
[1737910791176,0.60266,3319.1,3319.0,0.0045212]
[1737910791362,3.15242362,3319.1,3319.0,0.0045212]
[1737910792771,9.16252724,3319.1,3318.0,2.977]
[1737910793080,0.6028,3318.3,3318.2,0.4793]
[1737910793278,3.8106,3318.3,3318.2,0.4793]
[1737910797587,6.36036362,3318.3,3318.2,0.4793]
[1737910798685,5.57016362,3318.3,3318.2,0.4793]
[1737910798889,6.17296362,3318.3,3318.2,0.4793]
[1737910800178,4.5602,3318.3,3318.2,0.4793]
[1737910800378,1.5398,3318.3,3318.2,0.4793]
[1737910801285,0.6028,3318.3,3318.2,0.4793]
[1737910801592,4.1458,3318.7,3318.2,0.4793]
[1737910801889,0.60278,3318.5,3318.2,4.05912]
[1737910802084,3.2078,3318.7,3318.2,4.05912]
[1737910802394,0.60279,3318.4,3318.2,4.05912]
[1737910802584,0.60278,3318.5,3318.2,4.05912]
[1737910802786,0.60276,3318.6,3318.4,0.60278]
[1737910802987,3.2078,3318.7,3318.5,0.4785]
[1737910803186,3.81053,3318.7,3318.5,1.08126]
[1737910803382,3.2078,3318.7,3318.5,0.4785]
[1737910803686,3.2078,3318.7,3318.6,1.08535]
[1737910803985,0.60271,3318.8,3318.7,0.60272]
[1737910804389,3.2078,3319.1,3318.7,0.60272]
[1737910804593,0.60269,3318.9,3318.8,0.495]
[1737910806794,0.60269,3318.9,3318.8,1.09771]
[1737910807006,0.60269,3318.9,3318.8,0.495]
[1737910808088,1.61285252,3319.3,3318.8,3.472]
[1737910808298,0.60265,3319.2,3319.1,0.60265]
[1737910808883,0.60265,3319.2,3319.1,3.81045]
[1737910809087,2.21548252,3319.3,3319.1,3.81045]
[1737910809296,2.21548252,3319.3,3319.2,0.4788]
[1737910809693,2.21548252,3319.3,3319.2,0.6654]
[1737910810293,1.61285252,3319.3,3319.2,1.26804]
[1737910810494,2.21547252,3319.3,3319.2,1.26804]
[1737910811199,2.21543252,3319.6,3319.5,0.60259]
[1737910811494,1.61285252,3319.6,3319.3,2.977]
[1737910811697,0.6026,3319.4,3319.3,3.57961]
[1737910813090,0.6026,3319.4,3319.3,2.977]
[1737910815793,0.60262,3319.3,3319.2,0.4788]
[1737910815998,2.70507252,3319.3,3319.2,0.4788]
[1737910817297,0.60264,3319.2,3319.1,3.2078]
[1737910817803,0.60264,3319.2,3319.1,2.4178]
[1737910818007,0.60264,3319.2,3318.5,4.914]
[1737910818008,0.6028,3318.3,3318.2,4.11190463]
[1737910821009,1.0882,3318.3,3318.2,4.11190463]
[1737910821206,1.0882,3318.3,3318.2,0.90410463]
[1737910831620,1.0882,3318.3,3318.2,0.11390463]
[1737910831811,5.2996,3318.3,3318.2,0.11390463]
[1737910836709,5.7652,3318.3,3318.2,0.11390463]
[1737910837017,4.7556,3318.3,3318.2,0.11390463]
[1737910861828,4.7596,3318.3,3318.2,0.11390463]
[1737910868539,5.52331662,3318.3,3318.2,0.11390463]
[1737910870141,4.57431662,3318.3,3318.2,0.11390463]
[1737910872142,1.36651662,3318.3,3318.2,0.11390463]
[1737910874348,1.36651662,3318.3,3318.2,1.58500463]
[1737910875241,1.36651662,3318.3,3318.2,0.11390463]
[1737910875441,6.37163324,3318.3,3318.2,0.11390463]
[1737910875849,5.60791662,3318.3,3318.2,0.11390463]
[1737910876448,6.37163324,3318.3,3318.2,0.11390463]
[1737910876652,5.60791662,3318.3,3318.2,0.11390463]
[1737910878550,6.45787021,3318.3,3318.2,0.11390463]
[1737910890959,6.36727021,3318.3,3318.2,0.11390463]
[1737910891161,5.42427021,3318.3,3318.2,0.11390463]
[1737910891364,6.36727021,3318.3,3318.2,0.11390463]
[1737910891562,5.76447021,3318.3,3318.2,0.11390463]
[1737910892266,4.82147021,3318.3,3318.2,0.11390463]
[1737910892450,5.42427021,3318.3,3318.2,0.11390463]
[1737910892652,3.2078,3318.3,3318.2,0.11390463]
[1737910893654,1.61367021,3318.6,3318.2,0.11390463]
[1737910893655,2.55667021,3318.6,3318.2,0.11390463]
[1737910893855,0.6028,3318.4,3318.2,0.11390463]
[1737910894769,0.6028,3318.4,3318.2,1.62082926]
[1737910895969,0.6028,3318.4,3318.2,1.62081926]
[1737910896172,0.6028,3318.4,3318.2,4.59781926]
[1737910896676,0.6028,3318.3,3318.2,4.59781926]
[1737910896868,0.6028,3318.3,3318.2,3.99500926]
[1737910897770,0.6028,3318.3,3318.2,4.59782926]
[1737910898666,1.36635345,3318.3,3318.2,4.59782926]
[1737910899473,0.76355345,3318.3,3318.2,4.59782926]
[1737910899875,1.36635345,3318.3,3318.2,4.59782926]
[1737910903476,0.76355345,3318.3,3318.2,4.59782926]
[1737910904472,1.36635345,3318.3,3318.2,4.59782926]
[1737910905275,0.76355345,3318.3,3318.2,4.59782926]
[1737910912578,1.36635345,3318.3,3318.2,4.59782926]
[1737910912777,0.76355345,3318.3,3318.2,4.59782926]
[1737910913877,0.76355345,3318.5,3318.2,3.99500926]
[1737910914082,0.76355345,3318.5,3318.4,0.60277]
[1737910914681,3.2078,3318.7,3318.2,4.75856271]
[1737910914682,4.57409345,3318.7,3318.6,0.60275]
[1737910915073,3.97135345,3318.7,3318.6,0.60275]
[1737910915273,0.76355345,3318.7,3318.6,0.60275]
[1737910916382,1.36628345,3318.7,3318.6,0.60275]
[1737910916582,0.76355345,3318.7,3318.6,0.60275]
[1737910916885,0.76355345,3318.7,3318.6,3.57975]
[1737910917180,0.76355345,3318.7,3318.6,4.05585]
[1737910919670,1.36628345,3318.7,3318.6,4.05585]
[1737910924786,0.76355345,3318.7,3318.6,4.05585]
[1737910928483,1.36628345,3318.7,3318.6,4.05585]
[1737910929283,1.36628345,3318.7,3318.6,2.977]
[1737910937896,0.76355345,3318.7,3318.4,0.90405014]
[1737910938194,1.36632345,3318.5,3318.4,0.90405014]
[1737910939989,0.6028,3318.3,3318.2,1.01800926]
[1737910940292,2.1299069,3318.3,3318.2,1.01800926]
[1737910940697,1.84605345,3318.3,3318.2,1.01800926]
[1737910944896,5.05385345,3318.3,3318.2,1.01800926]
[1737910947698,4.57415345,3318.3,3318.2,1.01800926]
[1737910947897,5.50915345,3318.3,3318.2,1.01800926]
[1737910952401,2.30135345,3318.3,3318.2,1.01800926]
[1737910952703,5.50915345,3318.3,3318.2,1.01800926]
[1737910960300,5.50715345,3318.3,3318.2,1.01800926]
[1737910961107,4.57415345,3318.3,3318.2,1.01800926]
[1737910966910,1.36635345,3318.3,3318.2,1.01800926]
[1737910967302,0.76355345,3318.3,3318.2,1.01800926]
[1737910967903,0.76355345,3318.3,3318.2,1.52970926]
[1737910968415,0.76355345,3318.3,3318.2,3.96476077]
[1737910969009,0.76355345,3318.3,3318.2,7.17256077]
[1737910972500,0.76355345,3318.5,3318.4,0.60279]
[1737910972705,1.36629345,3318.7,3318.6,0.60275]
[1737910973012,0.60276,3318.6,3318.5,0.60276]
[1737910973215,0.76355345,3318.6,3318.5,0.60276]
[1737910973520,1.36630345,3318.6,3318.5,2.43499151]
[1737910973711,1.36630345,3318.6,3318.5,2.43500151]
[1737910974707,0.76355345,3318.6,3318.5,2.43500151]
[1737910974913,0.76355345,3318.6,3318.5,3.33902441]
[1737910979119,1.36630345,3318.6,3318.5,3.33902441]
[1737910979311,1.36630345,3318.6,3318.5,2.73625441]
[1737910985113,0.76355345,3318.6,3318.5,2.73625441]
[1737910985312,1.36630345,3318.6,3318.5,2.73625441]
[1737910985719,1.36630345,3318.6,3318.5,3.21205441]
[1737910986624,0.76355345,3318.6,3318.5,3.81482441]
[1737910988319,0.6027,3318.9,3318.5,3.81482441]
[1737910988511,0.76355345,3318.8,3318.7,0.60273]
[1737910988718,0.76355345,3319.0,3318.7,2.30723151]
[1737910988929,0.76355345,3319.0,3318.9,0.60269]
[1737910992020,1.36623345,3319.0,3318.9,0.60269]
[1737910992217,0.60271,3318.8,3318.7,2.90995151]
[1737910992419,1.36626345,3318.8,3318.7,2.90995151]
[1737910993724,0.76355345,3318.8,3318.7,2.90995151]
[1737910997433,0.76355345,3318.8,3318.7,1.83223151]
[1737910997434,1.36626345,3318.8,3318.7,1.83223151]
[1737910997729,2.34496345,3318.8,3318.7,1.83223151]
[1737911004923,2.34496345,3318.8,3318.7,2.43496151]
[1737911009540,1.36626345,3318.8,3318.7,2.43496151]
[1737911009737,4.71445,3319.2,3318.7,1.83223151]
[1737911009738,0.76355345,3319.0,3318.7,1.83223151]
[1737911009942,0.76355345,3319.0,3318.9,0.60269]
[1737911010334,0.76355345,3319.0,3318.9,1.12759]
[1737911010935,0.76355345,3319.0,3318.9,4.33539]
[1737911011243,0.76355345,3319.4,3318.9,3.7327]
[1737911011539,0.76355345,3319.4,3319.3,3.81042]
[1737911011928,0.76355345,3319.4,3319.3,5.64265151]
[1737911014545,0.60257,3319.6,3319.3,5.04003151]
[1737911014741,0.60257,3319.6,3319.5,0.60259]
[1737911015243,0.60259,3319.5,3319.4,2.12179]
[1737911015834,0.60259,3319.5,3319.4,1.60229]
[1737911016849,0.60259,3319.5,3319.4,0.60259]
[1737911017843,0.60259,3319.5,3319.4,2.43482151]
[1737911019148,0.60259,3319.5,3319.4,1.83223151]
[1737911019337,0.60259,3319.5,3319.4,0.25263151]
[1737911019747,0.6026,3319.4,3319.3,0.90380501]
[1737911019948,2.21442452,3319.4,3319.3,0.90380501]
[1737911023952,2.21442452,3319.4,3319.3,0.55223581]
[1737911024345,2.21442452,3319.4,3319.3,0.33018391]
[1737911031656,5.42222452,3319.4,3319.3,0.33018391]
[1737911032253,5.90872452,3319.4,3319.3,0.33018391]
[1737911034556,5.82382566,3319.4,3319.3,0.33018391]
[1737911043556,0.60275,3318.6,3318.5,4.1118229]
[1737911047960,0.60275,3318.6,3318.5,0.9040229]
[1737911053358,0.76346283,3318.9,3318.5,0.9040229]
[1737911053560,0.76346283,3319.1,3318.6,3.46043151]
[1737911053755,0.76346283,3319.2,3319.1,0.60265]
[1737911054461,1.36610283,3319.2,3319.1,0.60265]
[1737911054856,0.76346283,3319.2,3319.1,0.60265]
[1737911055359,0.60266,3319.1,3319.0,0.60267]
[1737911055561,1.36611283,3319.2,3319.1,0.60266]
[1737911055760,1.36611283,3319.2,3319.1,1.12206]
[1737911056765,1.36611283,3319.2,3319.1,1.62406]
[1737911056959,1.36611283,3319.2,3319.1,2.11126]
[1737911062365,0.76346283,3319.2,3319.1,2.11126]
[1737911064664,1.36610283,3319.2,3319.1,2.11126]
[1737911065459,0.76346283,3319.2,3319.1,2.36389151]
[1737911068168,1.36610283,3319.2,3319.1,2.36389151]
[1737911068764,0.76346283,3319.2,3319.1,2.36389151]
[1737911071268,0.76346283,3319.6,3319.1,2.52469434]
[1737911071569,0.76346283,3319.6,3319.5,0.60259]
[1737911071870,0.76346283,3319.6,3319.5,0.85522151]
[1737911072070,0.76346283,3319.6,3319.5,1.33402151]
[1737911076370,1.36603283,3319.6,3319.5,1.33402151]
[1737911076567,1.85073283,3319.6,3319.5,0.73143151]
[1737911076872,1.85073283,3319.6,3319.5,1.63518207]
[1737911077761,1.85073283,3319.6,3319.5,2.23777207]
[1737911084078,1.24816283,3319.6,3319.5,2.23777207]
[1737911086077,1.85073283,3319.6,3319.5,2.23777207]
[1737911086274,1.85073283,3319.6,3319.5,1.63518207]
[1737911086483,1.85073283,3319.6,3319.5,2.53893263]
[1737911087493,1.85073283,3319.6,3319.5,2.06013263]
[1737911087887,1.85073283,3319.6,3319.5,2.66272263]
[1737911088290,1.85073283,3319.6,3319.5,2.06013263]
[1737911089178,1.85073283,3319.6,3319.5,1.80750112]
[1737911089490,1.85073283,3319.6,3319.5,2.41009112]
[1737911090687,1.24816283,3319.6,3319.5,2.41009112]
[1737911091490,0.76346283,3319.6,3319.5,2.41009112]
[1737911100692,0.0045212,3319.7,3319.6,0.60257]
[1737911100891,0.0045212,3319.7,3319.6,1.07907]
[1737911101092,0.0045212,3319.7,3319.6,1.56987]
[1737911104096,0.0045212,3319.7,3319.6,1.82250151]
[1737911106990,0.0045212,3319.7,3319.6,5.03030151]
[1737911107796,0.0045212,3319.7,3319.6,5.93402485]
[1737911119710,0.0045212,3319.7,3319.6,6.83774819]
[1737911128415,0.0045212,3319.7,3319.6,7.74147153]
[1737911136514,0.0045212,3319.7,3319.6,6.77417153]
[1737911136713,0.5232212,3319.7,3319.6,6.77417153]
[1737911138317,0.5232212,3319.7,3319.6,7.67789487]
[1737911139323,0.5232212,3319.7,3319.6,6.88799487]
[1737911139508,4.3335712,3319.7,3319.6,2.89029487]
[1737911145622,4.3335712,3319.7,3319.6,2.08109487]
[1737911155926,5.2645712,3319.7,3319.6,2.08109487]
[1737911156126,5.2645712,3319.7,3319.6,2.56809487]
[1737911157331,4.3335712,3319.7,3319.6,2.56809487]
[1737911157532,5.2645712,3319.7,3319.6,2.56809487]
[1737911163234,5.2645712,3319.7,3319.6,1.74378607]
[1737911167740,5.2645712,3319.7,3319.6,2.25258607]
[1737911168438,5.2645712,3319.7,3319.6,0.49460534]
[1737911168641,0.60257,3319.6,3319.5,0.76113546]
[1737911168835,1.36603283,3319.6,3319.5,0.76113546]
[1737911174442,4.57383283,3319.6,3319.5,0.76113546]
[1737911184550,4.57383283,3319.6,3319.5,1.66488602]
[1737911188748,4.57383283,3319.6,3319.5,1.02192493]
[1737911189354,4.57383283,3319.6,3319.5,0.67609923]
[1737911196661,5.07263283,3319.6,3319.5,0.67609923]
[1737911197664,4.57383283,3319.6,3319.5,0.67609923]
[1737911201364,5.50483283,3319.6,3319.5,0.67609923]
[1737911204570,5.50483283,3319.6,3319.5,0.43665088]
[1737911212977,4.57383283,3319.6,3319.5,0.43665088]
[1737911213176,5.50383283,3319.6,3319.5,0.43665088]
[1737911214380,4.57383283,3319.6,3319.5,0.43665088]
[1737911225088,3.97126283,3319.6,3319.5,0.43665088]
[1737911225288,3.97126283,3319.6,3319.5,1.03924088]
[1737911225694,4.57383283,3319.6,3319.5,1.03924088]
[1737911225896,3.97126283,3319.6,3319.5,1.03924088]
[1737911226791,4.57383283,3319.6,3319.5,0.43665088]
[1737911227492,4.57383283,3319.6,3319.5,1.34040144]
[1737911232799,1.36603283,3319.6,3319.5,1.34040144]
[1737911246308,0.0045212,3319.7,3319.6,0.60257]
[1737911246512,0.998,3320.5,3319.6,5.33733283]
[1737911246712,4.2058,3320.8,3320.4,0.76346283]
[1737911246910,4.2058,3320.8,3320.6,1.36584283]
[1737911247120,4.32865,3320.8,3320.6,1.36585283]
[1737911247412,3.2078,3320.8,3320.6,0.76346283]
[1737911247614,0.60237,3320.7,3320.6,0.76346283]
[1737911247813,3.2078,3320.8,3320.7,0.60237]
[1737911248111,14.24450921,3320.9,3320.7,0.60237]
[1737911248312,14.24450921,3320.9,3320.8,1.36581283]
[1737911248513,0.0045212,3321.0,3320.8,1.36581283]
[1737911248708,0.0045212,3321.0,3320.8,0.76346283]
[1737911248709,0.6068312,3321.0,3320.8,0.76346283]
[1737911248910,0.0045212,3321.0,3320.9,0.60233]
[1737911249709,0.6068312,3321.0,3320.9,0.60233]
[1737911250108,0.6068312,3321.0,3320.8,1.36581283]
[1737911251113,0.0045212,3321.0,3320.8,1.36581283]
[1737911251315,0.6068512,3321.0,3320.8,0.76346283]
[1737911251817,0.0045212,3321.0,3320.8,0.76346283]
[1737911252312,0.76798403,3321.0,3320.5,6.6738]
[1737911252512,1.36585283,3320.6,3320.5,2.977]
[1737911252710,0.6024,3320.5,3320.4,0.0045212]
[1737911252917,1.6046,3320.5,3320.4,0.0045212]
[1737911258722,0.6024,3320.5,3320.4,0.0045212]
[1737911260123,0.6024,3320.5,3320.4,0.6069412]
[1737911260419,0.6024,3320.5,3320.4,0.0045212]
[1737911266913,0.6024,3320.6,3320.5,0.6024]
[1737911269628,1.9254,3320.9,3320.4,0.0045212]
[1737911269923,1.9254,3320.9,3320.6,0.60237]
[1737911270229,0.60237,3320.7,3320.6,0.60237]
[1737911270628,0.60237,3320.7,3320.4,0.0045212]
[1737911270828,0.6024,3320.5,3320.4,0.6069312]
[1737911275224,0.6024,3320.6,3320.5,0.6024]
[1737911280234,0.76250339,3320.7,3320.4,0.0045212]
[1737911280436,1.36490339,3320.5,3320.4,0.0045212]
[1737911293851,1.36490339,3320.5,3320.4,0.00269824]
[1737911294546,1.36490339,3320.5,3320.4,0.00174378]
[1737911299547,2.12740678,3320.5,3320.4,0.00174378]
[1737911299749,1.36490339,3320.5,3320.4,0.00174378]
[1737911301845,1.36490339,3320.5,3320.4,0.00094378]
[1737911305852,0.60255,3319.7,3319.6,0.4833]
[1737911306154,1.36505339,3319.7,3319.6,0.4833]
[1737911314860,1.36505339,3319.7,3319.6,1.08587]
[1737911315266,0.76250339,3319.7,3319.6,1.08587]
[1737911315656,4.90030339,3319.9,3319.6,0.4833]
[1737911315961,4.90030339,3319.9,3319.8,0.60253]
[1737911316361,3.97030339,3319.9,3319.8,0.60253]
[1737911316662,0.76250339,3319.9,3319.8,0.60253]
[1737911320159,1.36501339,3319.9,3319.8,0.60253]
[1737911320355,0.76250339,3319.9,3319.8,0.60253]
[1737911323163,1.36501339,3319.9,3319.8,0.60253]
[1737911323368,0.76250339,3319.9,3319.8,0.60253]
[1737911325573,1.36501339,3319.9,3319.8,0.60253]
[1737911330273,0.76250339,3319.9,3319.8,0.60253]
[1737911331174,1.36501339,3319.9,3319.8,0.60253]
[1737911331376,0.76250339,3319.9,3319.8,0.60253]
[1737911336387,1.36499339,3320.1,3320.0,0.60249]
[1737911336785,0.76250339,3320.1,3320.0,0.38937891]
[1737911338892,1.36498339,3320.1,3320.0,0.38937891]
[1737911340694,0.76250339,3320.1,3320.0,0.38937891]
[1737911344901,3.2078,3320.3,3320.2,0.60246]
[1737911346498,1.36488339,3320.7,3320.2,0.76250339]
[1737911346705,1.36488339,3320.7,3320.2,3.73950339]
[1737911346899,1.36488339,3320.7,3320.6,0.60239]
[1737911347198,3.2078,3320.8,3320.4,0.76250339]
[1737911347393,3.2078,3320.8,3320.7,0.60237]
[1737911353808,3.2078,3320.8,3320.7,1.50579397]
[1737911358016,3.2078,3320.8,3320.7,2.40921794]
[1737911364919,0.6068412,3321.0,3320.9,0.60233]
[1737911365216,0.0045212,3321.0,3320.7,1.80684794]
[1737911365416,0.60235,3320.8,3320.7,1.80684794]
[1737911365723,0.60235,3320.8,3320.7,2.40921794]
[1737911366021,2.05685,3320.8,3320.7,2.40921794]
[1737911366921,2.05685,3320.8,3320.7,3.31264191]
[1737911370124,1.4545,3320.8,3320.7,3.31264191]
[1737911370419,2.05685,3320.8,3320.7,3.31264191]
[1737911370619,1.4545,3320.8,3320.7,3.31264191]
[1737911372320,2.05685,3320.8,3320.7,3.31264191]
[1737911373416,1.4545,3320.8,3320.7,3.31264191]
[1737911374225,2.05685,3320.8,3320.7,3.31264191]
[1737911374423,2.05685,3320.8,3320.7,4.21606588]
[1737911374921,2.05685,3320.8,3320.7,2.62279263]
[1737911376119,1.4545,3320.8,3320.7,2.62279263]
[1737911376516,2.05685,3320.8,3320.7,2.62279263]
[1737911378825,5.26465,3320.8,3320.7,2.01684521]
[1737911379022,9.6623,3320.8,3319.8,2.977]
[1737911379326,0.60253,3319.8,3319.6,0.60255]
[1737911379624,1.85066339,3319.7,3319.5,6.054532]
[1737911379925,0.60257,3319.6,3319.5,2.244152]
[1737911381930,0.76250339,3319.9,3319.5,2.244152]
[1737911382228,1.28330339,3320.1,3320.0,0.6025]
[1737911382530,0.76250339,3320.1,3320.0,0.6025]
[1737911384629,3.2078,3320.2,3320.1,0.60248]
[1737911385333,3.2078,3320.2,3320.1,1.10468]
[1737911386023,5.42149917,3320.2,3320.1,0.5022]
[1737911386633,0.60248,3320.1,3320.0,0.90361445]
[1737911386936,1.08178,3320.1,3320.0,0.90361445]
[1737911387329,1.55588,3320.1,3320.0,0.90361445]
[1737911388233,1.08178,3320.1,3320.0,0.90361445]
[1737911389135,0.60248,3320.1,3320.0,0.90361445]
[1737911389638,0.60248,3320.1,3320.0,1.50611445]
[1737911389931,3.2078,3320.2,3320.0,1.50611445]
[1737911390135,3.2078,3320.2,3320.1,1.55178]
[1737911394233,3.2078,3320.7,3320.1,0.9493]
[1737911394437,0.60244,3320.3,3320.2,1.10234]
[1737911397028,3.2078,3320.7,3320.2,1.10234]
[1737911397029,0.60243,3320.4,3320.3,0.60244]
[1737911397443,0.60241,3320.5,3320.4,0.60242]
[1737911397634,0.6024,3320.6,3320.3,0.60244]
[1737911397839,0.6024,3320.6,3320.4,0.60241]
[1737911399542,3.2078,3320.7,3320.2,3.4769]
[1737911399742,0.60242,3320.5,3320.4,0.60242]
[1737911401241,0.60242,3320.4,3320.3,0.60243]
[1737911402451,3.2078,3320.7,3320.2,3.4769]
[1737911402651,0.60242,3320.5,3320.4,0.60242]
[1737911403947,0.60243,3320.4,3320.3,0.60243]
[1737911404742,3.2078,3320.7,3320.2,3.4769]
[1737911405051,0.60244,3320.3,3320.2,4.07935]
[1737911412960,0.60244,3320.3,3320.2,3.4769]
[1737911413155,1.10604,3320.3,3320.2,2.977]
[1737911413466,1.59564,3320.3,3320.2,2.977]
[1737911415058,4.80344,3320.3,3320.2,2.977]
[1737911416163,0.60248,3320.1,3320.0,0.90361445]
[1737911416362,2.21392452,3320.1,3320.0,0.90361445]
[1737911421368,2.21392452,3320.1,3320.0,0.4935989]
[1737911425065,0.60248,3320.1,3320.0,0.4935989]
[1737911425569,0.60248,3320.1,3320.0,0.30764123]
[1737911427968,1.53248,3320.1,3320.0,0.30764123]
[1737911428768,0.60248,3320.1,3320.0,0.30764123]
[1737911444678,1.3653166,3320.1,3320.0,0.30764123]
[1737911447283,0.60248,3320.1,3320.0,0.30764123]
[1737911447991,0.60247,3320.2,3320.0,0.30764123]
[1737911448188,0.60247,3320.2,3320.1,1.08388]
[1737911448383,0.60247,3320.2,3320.1,0.4814]
[1737911456491,0.60247,3320.2,3320.1,1.08388]
[1737911456692,0.60247,3320.2,3320.1,0.4814]
[1737911457690,0.60247,3320.2,3320.1,1.08388]
[1737911458198,0.60242,3320.5,3320.4,0.60241]
[1737911460096,0.6024,3320.6,3320.5,0.6024]
[1737911460897,3.81018,3320.7,3320.5,0.6024]
[1737911461101,3.81018,3320.7,3320.6,1.60519]
[1737911461301,3.2078,3320.7,3320.6,1.60519]
[1737911462400,0.0045212,3321.0,3320.6,1.0028]
[1737911462894,0.0045212,3321.0,3320.8,0.60234]
[1737911463897,0.6068512,3321.0,3320.8,0.60234]
[1737911464200,0.6068512,3321.0,3320.9,0.60233]
[1737911465497,0.6068512,3321.0,3320.8,0.60234]
[1737911466000,0.6068512,3321.0,3320.8,0.60233]
[1737911466898,0.0045212,3321.0,3320.6,3.9798]
[1737911467198,0.0045212,3321.0,3320.9,0.60233]
[1737911468500,0.6068312,3321.0,3320.9,0.60233]
[1737911475307,0.0045212,3321.0,3320.9,0.60233]
[1737911477606,0.0045212,3321.0,3320.9,1.36461859]
[1737911490315,0.0045212,3321.0,3320.9,4.34161859]
[1737911491416,3.2078,3321.2,3321.1,0.6023]
[1737911491709,3.2078,3321.2,3321.1,1.36458859]
[1737911491911,3.2078,3321.6,3321.1,0.76228859]
[1737911492115,4.29684,3322.0,3321.9,0.60215]
[1737911492315,4.29684,3322.0,3321.9,0.33666218]
[1737911493006,0.60215,3321.9,3321.8,1.36443859]
[1737911493410,0.60215,3321.9,3321.8,0.60215]
[1737911495108,0.60215,3321.9,3321.7,1.0118]
[1737911495109,0.60217,3321.8,3321.7,1.0118]
[1737911495314,1.09587,3321.8,3321.7,1.61399]
[1737911495712,1.09587,3321.8,3321.7,1.0118]
[1737911497120,1.09587,3321.8,3321.7,1.61399]
[1737911498718,0.4937,3321.8,3321.7,1.61399]
[1737911500122,1.09587,3321.8,3321.7,1.61399]
[1737911501323,0.60216,3321.9,3321.8,0.60215]
[1737911502426,0.0045212,3322.3,3321.8,0.76228859]
[1737911502627,0.0045212,3322.3,3322.2,0.6021]
[1737911503125,0.0045212,3322.3,3322.2,1.1131]
[1737911504217,0.0045212,3322.3,3322.2,4.0901]
[1737911504421,0.76228859,3323.0,3322.8,0.60198]
[1737911504621,1.36425859,3323.0,3322.8,0.60198]
[1737911504929,0.76228859,3323.0,3322.9,0.60197]
[1737911506635,0.60194,3323.1,3322.9,0.60197]
[1737911506841,3.2078,3323.2,3322.7,1.0277]
[1737911507038,0.60201,3322.7,3322.5,0.60203]
[1737911507444,0.4908,3322.6,3322.5,0.60203]
[1737911507736,1.09282,3322.6,3322.5,0.60203]
[1737911508038,1.09282,3322.6,3322.3,0.521]
[1737911508039,0.60206,3322.4,3322.3,0.521]
[1737911513845,0.60206,3322.4,3322.3,1.12308]
[1737911515442,0.60209,3322.3,3322.0,0.4843]
[1737911515642,0.60209,3322.3,3322.2,0.60209]
[1737911516346,0.60207,3322.4,3322.3,0.60207]
[1737911520451,0.60209,3322.3,3322.2,0.60209]
[1737911520651,0.60207,3322.4,3322.3,0.60207]
[1737911521439,0.60209,3322.3,3322.2,0.60209]
[1737911522252,3.6986,3322.6,3322.0,0.9803]
[1737911522446,3.6986,3322.6,3322.2,0.60209]
[1737911522647,0.60209,3322.3,3322.2,0.60209]
[1737911524847,3.6986,3322.6,3322.0,0.9803]
[1737911525255,4.30063,3322.6,3322.5,0.60204]
[1737911526541,3.6986,3322.6,3322.5,0.60204]
[1737911526852,3.2078,3322.6,3322.5,0.60204]
[1737911528953,0.477,3322.9,3322.8,0.60199]
[1737911529346,1.07897,3322.9,3322.8,0.60199]
[1737911531056,0.477,3322.9,3322.8,0.60199]
[1737911531647,0.477,3322.9,3322.6,0.60201]
[1737911531852,0.477,3322.9,3322.5,1.0198]
[1737911532054,0.477,3322.9,3322.5,0.5162]
[1737911532457,0.60202,3322.6,3322.5,1.11823]
[1737911533050,0.60202,3322.6,3322.5,0.5162]
[1737911533553,3.2078,3322.6,3322.3,0.4852]
[1737911533858,3.2078,3322.6,3322.0,0.5216]
[1737911533859,0.60211,3322.1,3322.0,0.5216]
[1737911534058,0.60211,3322.1,3322.0,1.12373]
[1737911535051,0.60211,3322.1,3322.0,0.5216]
[1737911535654,3.80991,3322.1,3322.0,0.5216]
[1737911537051,5.41843883,3322.1,3322.0,0.5216]
[1737911537260,0.60215,3321.9,3321.8,0.4852]
[1737911537956,0.60215,3321.9,3321.8,1.08737]
[1737911538156,0.60215,3321.9,3321.8,0.4852]
[1737911538352,0.60217,3321.8,3321.7,0.4841]
[1737911538659,0.60219,3321.7,3321.6,0.0045212]
[1737911540756,3.80999,3321.7,3321.6,0.0045212]
[1737911552971,0.60219,3321.7,3321.6,0.0045212]
[1737911553172,0.931,3321.9,3321.6,0.0045212]
[1737911553366,0.60219,3321.7,3321.6,0.6067212]
[1737911558581,0.60218,3321.8,3321.7,0.60218]
[1737911560676,0.60219,3321.7,3321.6,0.6067212]
[1737911561080,0.60219,3321.7,3321.6,0.0045212]
[1737911564576,3.80999,3321.7,3321.6,0.0045212]
[1737911574583,0.60219,3321.7,3321.6,0.0045212]
[1737911576587,0.60219,3321.7,3321.6,0.5050212]
[1737911582298,1.4452,3322.0,3321.6,0.5050212]
[1737911582488,0.60218,3321.8,3321.7,1.36414246]
[1737911582689,0.60218,3321.8,3321.7,0.76196246]
[1737911591495,0.60218,3321.8,3321.7,1.36415246]
[1737911596894,0.60216,3321.9,3321.8,0.60215]
[1737911597097,3.2078,3322.1,3322.0,0.60213]
[1737911597303,3.2078,3322.1,3322.0,1.36409246]
[1737911597603,3.2078,3322.1,3322.0,1.88049246]
[1737911599502,3.2078,3322.1,3322.0,2.13049246]
[1737911600792,3.80991,3322.1,3322.0,2.13049246]
[1737911601900,3.2078,3322.5,3322.4,0.60205]
[1737911602100,3.2078,3322.5,3322.4,1.36401246]
[1737911602603,3.80984,3322.5,3322.4,1.36401246]
[1737911602899,3.2078,3322.5,3322.4,1.36401246]
[1737911605398,0.60208,3322.4,3322.3,0.60207]
[1737911605598,3.2078,3322.5,3322.2,0.76196246]
[1737911605803,0.60208,3322.3,3322.2,0.76196246]
[1737911606102,0.60211,3322.1,3322.0,1.52836246]
[1737911606300,0.60211,3322.1,3322.0,2.13049246]
[1737911609305,0.5146,3322.4,3322.0,1.52836246]
[1737911609499,0.60211,3322.2,3322.1,0.60211]
[1737911609699,0.60211,3322.2,3322.1,1.36407246]
[1737911614711,0.60211,3322.2,3322.1,0.76196246]
[1737911615210,0.60211,3322.2,3322.1,1.36407246]
[1737911618504,0.60209,3322.3,3322.2,0.60207]
[1737911618708,0.60208,3322.4,3322.3,0.60206]